Workbook

Sheet Multiplication
B1: How to Count
B3: In order to count up the number of different "things" of some type, it is frequently
B4: useful to imagine yourself constructing one item of that type, and then, as you go
B5: through the steps of the construction, keep track of the points where you needed to
B6: make a choice. Then use the "multiplication rule": If there are x ways to start a
B7: process, and, no matter how you start, there are y ways to continue, then there are
B8: xy ways to carry out the combined steps.
B10: Example: In poker, a "straight" is a sequence of five cards of consecutive ranks,
B11: where the ranks are ordered A, 2, 3, 4, ..., 9, 10, J, Q, K, A. Note that an ace can be
B12: counted as either a high or a low card, but that straights can't wrap around, e.g.,
B13: Q, K, A, 2, 3 is not a straight. How many different 5-card straights can be dealt?
B15: Answer: If someone handed you a deck of cards, and asked you to pull out five cards
B16: forming a straight, what choices would you have to make? First, you'd have to decide
B17: the range of the straight, which is fully determined once you decide what rank will be the
B18: lowest in the hand. Any of the ranks from A, 2, 3, ..., through 10 could be the lowest
B19: rank in the hand, so there are 10 ways to start. Having chosen the lowest rank, the
B20: actual card of that rank can be chosen to be any of the four suits. The next four ranks
B21: are already determined, but each of the cards of those ranks can also be chosen to be
B22: any of the four suits. Therefore, there are 10∙4∙4∙4∙4∙4 = 10,240 different straights.
B24: Example: Actually, a straight in which all five cards are of the same suit is called a
B25: "straight flush," and is counted as a different type of hand than a "simple straight" made
B26: of cards of at least two different suits. How many simple straights are there?
B28: Answer: From the total computed above, we want to subtract off the number of straight
B29: flushes. To construct a straight flush, you'd have to decide on the lowest rank in the
B30: straight (this can be done in 10 different ways), and then on the suit from which all five
B31: cards will be drawn (this can be done in 4 different ways). Therefore, there are 10∙4 = 40
B32: straight flushes, and 10,240 - 40 = 10,200 simple straights.

Sheet Combinations
B1: Counting Combinations
B3: Things tend to be counted in two ways: As sequences (in which order is important),
B4: and as sets. Counting sequences is simple. If there are m ways to do one thing,
B5: followed by n ways to do another, then there are mn ways to carry out the two tasks
B6: in sequence. In how many ways can a 5-card hand be dealt out (as in stud poker,
B7: where the order in which the cards are dealt is important)? 52∙51∙50∙49∙48 =
B8: 311,875,200. (For every one of the 52 ways to start with card 1, there are 51 ways to
B9: continue with card 2, ...)
B11: But how many 5-card hands are there? Obviously, every hand could be dealt out in
B12: 5∙4∙3∙2∙1 = 120 different card-orders. So there are only 311,875,200 / 120 = 2,598,960
B13: different hands.
B15: Standard notation: n! = 1∙2∙3∙...∙n ; the symbol "n!" is read as "n factorial". This gives
B16: the total number of ways of arranging n distinct items. The number of ways to select,
B17: in order, k items from n, is n∙(n-1)∙...∙(n-k+1) = n!/(n-k)! . In our card example, the
B18: number of ways to deal out a 5-card hand was simply 52! / 47! . But if we only care
B19: about different hands, and not the order in which the cards arrive, then we must take into
B20: account that each hand can be dealt out in 5! different ways, so there are really only
B21: 52! / (47!∙5!) different hands.
B23: More standard notation:
B26: is the number of ways of choosing k distinct items from a set of n ; the symbol is read
B27: as "n choose k".
B29: Example: What is the probability of being dealt a "full house" (two cards of one rank,
B30: and three of another)? There are
B34: different full houses (13 ways to choose the pair-rank, and 6 ways to choose two cards,
B35: then 12 ways left to choose the triple-rank, and 4 ways to choose three cards). So the
B36: probability is a bit more than one chance in a thousand, i.e., 3,744 / 2,598,960 =
B37: =3744/2598960 -> 0.00144057623 | C37: .
B39: Example: I have 5 pairs of blue socks, 3 pairs of brown socks, and 4 pairs of black
B40: socks lying loose in my drawer. What's the chance that two randomly-selected socks
B41: (pulled out early in the morning, before my eyes are really open) will match?
B43: There are
B46: ways to pick a matching pair, and
B49: ways to pick some pair. Therefore, the probability of a matching pair
B50: is 88 / 276 = 0.319 . (I'll match roughly every third day.)

Sheet Excel counting functions
B1: Three Useful "Counting" Formulas
B3: The FACTorial function | E3: 10 | F3: n
E4: =FACT(E3) -> 3628800 | F4: =showformula(E4) -> =FACT(E3)
B6: The function =FACT(n) counts the number of ways n distinct
B7: items can be arranged in a row.
B9: FACT(n) = n! = 1·2·3·...·n .
B11: Conventionally, FACT(0) = 1 ; there is precisely one way
B12: to arrange "nothing."
B14: The PERMUTations function | E14: 6 | F14: n
E15: 2 | F15: k
E16: =PERMUT(E14,E15) -> 30 | F16: =showformula(E16) -> =PERMUT(E14,E15)
B18: The function =PERMUT(n,k) counts the number of ways to select k items -
B19: in sequence, where order matters - from a group of n distinct items.
B21: PERMUT(n,k) = n! / (n-k)! = n·(n-1)·…·(n-k+1) .
B23: The COMBINations function | E23: 6 | F23: n
E24: 2 | F24: k
E25: =COMBIN(E23,E24) -> 15 | F25: =showformula(E25) -> =COMBIN(E23,E24)
B27: The function =COMBIN(n,k) counts the number of ways to select k items -
B28: as an unordered collection - from a group of n distinct items.
B30: COMBIN(n,k) = PERMUT(n,k) / k! = n! / [(n-k)!·k!] = n·(n-1)·…·(n-k+1) / k! .

Sheet Cards
B1: Counting Cards
B3: The "Probability Diagrams" workbook contained some rather large numbers.
B4: They were computed using the formulas below.
B7: =COMBIN(52,5) -> 2598960 | C7: =showformula(B7) -> =COMBIN(52,5) | E7: 5-card hands from a 52-card deck
B9: =COMBIN(48,5) -> 1712304 | C9: =showformula(B9) -> =COMBIN(48,5) | E9: hands with no aces
B10: =B7-B9 -> 886656 | C10: =showformula(B10) -> =B7-B9 | E10: hands with at least one ace
B12: =COMBIN(39,5) -> 575757 | C12: =showformula(B12) -> =COMBIN(39,5) | E12: hands with no clubs
B14: =COMBIN(36,5) -> 376992 | C14: =showformula(B14) -> =COMBIN(36,5) | E14: hands with no clubs and no aces
B15: =B12-B14 -> 198765 | C15: =showformula(B15) -> =B12-B14 | E15: hands with no clubs and at least one ace

Sheet Poker
B1: Poker Hands
B3: A "poker hand" consists of 5 cards dealt from a deck of 52 cards (with 13 ranks, and
B4: 4 suits; aces count as both the highest rank and the lowest rank).
B6: The various types of hands are
B8: a straight flush | D8: - five cards of consecutive ascending ranks, all of the same suit
B9: four of a kind | D9: - four cards of one rank, and one of another rank
B10: a full house | D10: - three cards of one rank, and two of another rank
B11: a flush | D11: - five cards of the same suit, but not a straight flush
B12: a straight | D12: - five cards of consecutive ascending ranks, but not a straight flush
B13: three of a kind | D13: - three cards of one rank, and two cards of two other ranks
B14: two pairs | D14: - two cards of each of two distinct ranks, and a fifth card of a different rank
B15: one pair | D15: - two cards of the same rank, and three cards of three different ranks
B16: nothing | D16: - none of the above
I17: hand type | K17: formulas
B18: Count the number of hands of each type.
I19: straight flush | K19: =COMBIN(10,1)*COMBIN(4,1) -> 40
B20: The answers are to the right: Click on a cell to see the formula. | I20: four of a kind | K20: =COMBIN(13,1)*COMBIN(4,4)*COMBIN(48,1) -> 624
I21: full house | K21: =COMBIN(13,1)*COMBIN(4,2)*COMBIN(12,1)*COMBIN(4,3) -> 3744
I22: flush | K22: =COMBIN(4,1)*COMBIN(13,5)-K19 -> 5108
I23: straight | K23: =COMBIN(10,1)*COMBIN(4,1)^5-K19 -> 10200
I24: three of a kind | K24: =COMBIN(13,1)*COMBIN(4,3)*COMBIN(12,2)*COMBIN(4,1)^2 -> 54912
I25: two pairs | K25: =COMBIN(13,2)*COMBIN(4,2)^2*COMBIN(44,1) -> 123552
I26: one pair | K26: =COMBIN(13,1)*COMBIN(4,2)*COMBIN(12,3)*COMBIN(4,1)^3 -> 1098240
I27: nothing | K27: =(COMBIN(13,5)-10)*(COMBIN(4,1)^5-4) -> 1302540
I28: total | K28: =SUM(K19:K27) -> 2598960 | L28: =showformula(K28) -> =SUM(K19:K27)
K29: =COMBIN(52,5) -> 2598960 | L29: =showformula(K29) -> =COMBIN(52,5)
